[Event "ESTCC U65 2018"]
[Site "Walbrzych"]
[Date "2018.04.15"]
[Round "2"]
[White "Just, Joachim"]
[Black "Kauko, Pekka"]
[Result "1-0"]
[ECO "D03"]
[WhiteElo "1928"]
[BlackElo "1961"]
[Annotator "NA RC"]
[PlyCount "107"]
[EventDate "2018.??.??"]
[EventCountry "POL"]
[SourceTitle "playchess.com"]
[Source "ChessBase"]
[SourceQuality "1"]
[WhiteTeam "Germany"]
[BlackTeam "Finland"]
[WhiteTeamCountry "GER"]
[BlackTeamCountry "FIN"]
[TimeControl "40/5400+30:1800+30"]

1. d4 {[%emt 0:00:00]} Nf6 {[%emt 0:00:19]} 2. Bg5 {[%emt 0:00:06]} d5 {[%emt 0:01:17]} 3. Nf3 {[%emt 0:00:53]} e6 {[%emt 0:00:57]} 4. e3 {[%emt 0:00:35]} c5 {[%emt 0:02:30]} 5. c3 {[%emt 0:00:26]} Be7 {[%emt 0:02:32]} 6. Nbd2 {[%emt 0:00:59]} O-O {[%emt 0:00:38] D03: 1 d4 d5 2 Nf3 Nf6 3 Bg5, including Torre Attack with early ...d5} 7. Ne5 {[%emt 0:01:17]} (7. Bd3 b6 8. O-O Ba6 9. Bxa6 Nxa6 10. Ne5 Nb8 11. Rc1 Nfd7 12. Bxe7 Qxe7 13. f4 Nxe5 14. fxe5 Nd7 15. Qe2 f6 16. exf6 Rxf6 17. Rxf6 Nxf6 {½-½ (42) Radjabov,T (2710)-Naiditsch,A (2687) Doha 2016}) 7... Nfd7 {[%emt 0:05:33]} 8. Bxe7 {[%emt 0:03:58]} Qxe7 {[%emt 0:00:03]} 9. Ndf3 {[%emt 0:01:02]} b6 {[%emt 0:01:19]} 10. Be2 {[%emt 0:01:50]} Bb7 {[%emt 0:00:44]} 11. O-O {[%emt 0:00:33]} f6 {[%emt 0:00:38]} 12. Nxd7 {[%emt 0:01:18]} Nxd7 {[%emt 0:00:07]} 13. Bb5 $146 {[%emt 0:00:21]} ({Predecessor:} 13. Nd2 e5 14. f4 cxd4 15. exd4 exd4 16. cxd4 {0-1 (43) Bauner,J (2032)-Borsos,B (2228) Aalborg 2014}) 13... a6 {[%emt 0:04:42]} 14. Ba4 {[%emt 0:02:48]} Rad8 {[%emt 0:01:14]} 15. Bc2 {[%emt 0:03:05]} e5 {[%emt 0:01:48]} 16. Nh4 {[%emt 0:02:53]} f5 {[%emt 0:39:01]} (16... g6 $11) 17. Nxf5 {[%emt 0:04:24]} Qf6 {[%emt 0:02:56]} 18. Ng3 {[%emt 0:01:22]} Qe6 {[%emt 0:06:18]} 19. Qh5 {[%emt 0:04:02]} g6 {[%emt 0:00:30]} 20. Qh4 {[%emt 0:01:01]} Nf6 {[%emt 0:02:39]} 21. Qg5 {[%emt 0:05:33]} Kh8 {[%emt 0:07:15]} 22. Qxe5 {[%emt 0:03:37]} Qxe5 {[%emt 0:00:18]} 23. dxe5 {[%emt 0:00:08]} Ng4 {[%emt 0:00:12]} 24. e6 {[%emt 0:00:50]} Rde8 {[%emt 0:00:44]} 25. e4 {[%emt 0:02:03]} Rxe6 {[%emt 0:00:43]} 26. exd5 {[%emt 0:01:13]} Bxd5 {[%emt 0:00:09]} 27. h3 {[%emt 0:00:46]} Nf6 {[%emt 0:01:01]} 28. Rfd1 {[%emt 0:00:36]} Rfe8 {[%emt 0:00:40]} 29. Bb3 {[%emt 0:02:23]} c4 {[%emt 0:00:33]} 30. Bc2 {[%emt 0:00:07]} Kg7 {[%emt 0:00:13]} 31. Kf1 {[%emt 0:00:48]} h5 {[%emt 0:00:16]} 32. Rd4 {[%emt 0:02:12]} Re5 {[%emt 0:02:51]} 33. Rad1 {[%emt 0:01:18]} b5 {[%emt 0:00:44]} 34. a4 $14 {[%emt 0:03:21]} ({White should try} 34. a3 $16) 34... R8e7 {[%emt 0:02:31]} 35. f3 {[%emt 0:03:21]} Bb7 {[%emt 0:02:00]} 36. h4 {[%emt 0:01:48]} a5 {[%emt 0:00:52]} 37. Rd6 {[%emt 0:04:39]} b4 {[%emt 0:01:50]} 38. cxb4 {[%emt 0:01:06]} axb4 {[%emt 0:00:03]} 39. Rb6 {[%emt 0:00:49]} b3 {[%emt 0:02:17]} 40. Bb1 {[%emt 0:00:00]} R5e6 {[%emt 0:00:27]} 41. Rxe6 {[%emt 0:02:45]} Rxe6 {[%emt 0:00:01]} 42. Ne2 {[%emt 0:02:18]} Nd5 {[%emt 0:00:56]} 43. Kf2 {[%emt 0:00:39]} Bc6 {[%emt 0:01:18]} 44. Nd4 {[%emt 0:00:34]} Bd7 {[%emt 0:01:57]} 45. Nxe6+ {[%emt 0:00:21]} Bxe6 {[%emt 0:00:01]} 46. Be4 {[%emt 0:00:34]} Nb4 {[%emt 0:00:52]} 47. a5 {[%emt 0:00:58]} Kf6 {[%emt 0:00:49]} 48. Rd6 {[%emt 0:00:40]} Ke5 {[%emt 0:00:43]} 49. Rb6 {[%emt 0:00:19]} Na2 {[%emt 0:00:32]} 50. a6 {[%emt 0:00:51]} c3 {[%emt 0:00:19]} 51. bxc3 {[%emt 0:00:42]} Nxc3 {[%emt 0:00:02]} 52. Bxg6 {[%emt 0:00:44]} Bd5 {[%emt 0:00:31]} 53. a7 {[%emt 0:00:26]} b2 {[%emt 0:00:29]} 54. Ke1 {[%emt 0:01:23]} 1-0

[Event "ESTCC U65 2018"]
[Site "Walbrzych"]
[Date "2018.04.15"]
[Round "2"]
[White "Gustavsson, Bo"]
[Black "Koskinen, Veikko"]
[Result "1/2-1/2"]
[ECO "A89"]
[WhiteElo "1915"]
[BlackElo "2012"]
[Annotator "NA RC"]
[PlyCount "30"]
[EventDate "2018.??.??"]
[EventCountry "POL"]
[SourceTitle "playchess.com"]
[Source "ChessBase"]
[SourceQuality "1"]
[WhiteTeam "Sweden"]
[BlackTeam "Finland"]
[WhiteTeamCountry "SWE"]
[BlackTeamCountry "FIN"]
[TimeControl "40/5400+30:1800+30"]

1. Nf3 {[%emt 0:00:00]} f5 {[%emt 0:00:11]} 2. c4 {[%emt 0:00:00]} Nf6 {[%emt 0:01:09]} 3. Nc3 {[%emt 0:00:09]} g6 {[%emt 0:00:31]} 4. d4 {[%emt 0:00:17]} Bg7 {[%emt 0:00:12]} 5. g3 {[%emt 0:03:31]} O-O {[%emt 0:00:23]} 6. Bg2 {[%emt 0:00:01]} d6 {[%emt 0:00:20]} 7. O-O {[%emt 0:00:12]} Nc6 {[%emt 0:04:03]} 8. d5 {[%emt 0:03:47]} Ne5 {[%emt 0:00:37]} 9. Nxe5 {[%emt 0:03:13]} dxe5 {[%emt 0:00:10]} 10. e4 {[%emt 0:00:06]} f4 {[%emt 0:01:29]} 11. f3 {[%emt 0:11:03]} g5 {[%emt 0:01:37]} 12. g4 {[%emt 0:02:15]} h5 {[%emt 0:06:40]} 13. h3 $11 {[%emt 0:00:24] LiveBook: 5 Games} hxg4 {[%emt 0:04:21]} 14. hxg4 {[%emt 0:02:26]} c6 {[%emt 0:22:50]} 15. Rf2 {[%emt 0:05:10]} Qd6 1/2-1/2

[Event "ESTCC U65 2018"]
[Site "Walbrzych"]
[Date "2018.04.15"]
[Round "2"]
[White "Vehkalahti, Veli"]
[Black "Hedin, Gunnar"]
[Result "0-1"]
[ECO "A88"]
[WhiteElo "1880"]
[BlackElo "2174"]
[Annotator "RC"]
[PlyCount "100"]
[EventDate "2018.??.??"]
[EventCountry "POL"]
[SourceTitle "playchess.com"]
[Source "ChessBase"]
[SourceQuality "1"]
[WhiteTeam "Finland"]
[BlackTeam "Sweden"]
[WhiteTeamCountry "FIN"]
[BlackTeamCountry "SWE"]
[TimeControl "40/5400+30:1800+30"]

1. d4 {[%emt 0:00:00]} f5 {[%emt 0:00:42]} 2. c4 {[%emt 0:00:26]} Nf6 {[%emt 0:00:37]} 3. g3 {[%emt 0:00:25]} g6 {[%emt 0:00:31]} 4. Bg2 {[%emt 0:00:08]} Bg7 {[%emt 0:00:23]} 5. Nf3 {[%emt 0:00:12]} O-O {[%emt 0:00:41]} 6. O-O {[%emt 0:00:23]} d6 {[%emt 0:00:14]} 7. Nc3 {[%emt 0:01:24]} c6 {[%emt 0:00:21]} 8. Bf4 {[%emt 0:05:12]} h6 {[%emt 0:04:16]} 9. Qc2 {[%emt 0:02:03]} Nh5 {[%emt 0:10:23]} 10. Bd2 {[%emt 0:07:55]} e5 {[%emt 0:03:40]} 11. dxe5 {[%emt 0:03:31]} dxe5 {[%emt 0:00:08]} 12. Rad1 {[%emt 0:05:57]} Qe8 {[%emt 0:02:25]} 13. e4 {[%emt 0:02:31]} f4 {[%emt 0:02:00]} 14. Ne2 {[%emt 0:04:27]} g5 {[%emt 0:07:59]} 15. Ne1 {[%emt 0:14:41]} g4 {[%emt 0:16:02]} 16. f3 {[%emt 0:02:22]} Na6 {[%emt 0:04:31]} 17. gxf4 {[%emt 0:10:00]} exf4 {[%emt 0:02:39]} 18. Bc3 {[%emt 0:06:55]} Qg6 {[%emt 0:03:52]} 19. Bxg7 {[%emt 0:01:38]} Qxg7 {[%emt 0:03:45]} 20. Rd6 {[%emt 0:09:38]} g3 {[%emt 0:04:25]} 21. Qd2 {[%emt 0:09:16]} gxh2+ {[%emt 0:03:25]} 22. Kh1 {[%emt 0:06:09]} Nc7 {[%emt 0:02:30]} 23. Rd8 {[%emt 0:02:29]} Be6 {[%emt 0:01:28]} 24. Rxa8 {[%emt 0:00:42]} Nxa8 {[%emt 0:00:06]} 25. b3 {[%emt 0:00:32]} Nc7 {[%emt 0:01:22]} 26. Nd3 {[%emt 0:01:29]} Qg5 {[%emt 0:00:19]} 27. Nf2 {[%emt 0:00:47]} Kh7 {[%emt 0:04:17]} 28. Bh3 {[%emt 0:01:16]} Rg8 {[%emt 0:02:05]} 29. Bg4 {[%emt 0:00:08]} Ng3+ {[%emt 0:10:23]} 30. Nxg3 {[%emt 0:00:35]} fxg3 {[%emt 0:00:19]} 31. Qxg5 {[%emt 0:00:04]} Rxg5 {[%emt 0:00:20]} 32. Nh3 {[%emt 0:00:53]} Rg7 {[%emt 0:00:41]} 33. Nf4 {[%emt 0:00:38]} Bxg4 {[%emt 0:01:05]} 34. fxg4 {[%emt 0:00:03]} Rxg4 {[%emt 0:00:49]} 35. Kg2 {[%emt 0:00:18]} Ne8 {[%emt 0:03:46]} 36. Nh5 {[%emt 0:00:25]} Rxe4 {[%emt 0:01:16]} 37. Nxg3 {[%emt 0:00:02]} Re7 {[%emt 0:01:06]} 38. Kxh2 {[%emt 0:00:00]} Kg6 {[%emt 0:00:00]} 39. Kg2 {[%emt 0:00:35]} Nf6 {[%emt 0:00:46]} 40. Rf2 {[%emt 0:00:00]} Re5 {[%emt 0:01:26]} 41. Rd2 {[%emt 0:10:11]} Rg5 {[%emt 0:00:45]} 42. Rd4 {[%emt 0:02:50]} Nh5 {[%emt 0:01:00]} 43. Rd6+ {[%emt 0:01:47]} Kh7 {[%emt 0:02:37]} 44. Rd7+ {[%emt 0:00:09]} Kg8 {[%emt 0:00:18]} 45. Rxb7 {[%emt 0:05:54]} Rxg3+ {[%emt 0:01:25]} 46. Kh2 {[%emt 0:00:38]} Rg7 {[%emt 0:00:10]} 47. Rb4 {[%emt 0:00:41]} Nf4 {[%emt 0:03:37]} 48. Ra4 {[%emt 0:00:15]} Nd3 {[%emt 0:02:15]} 49. a3 {[%emt 0:03:44]} Nc5 {[%emt 0:01:21]} 50. Rb4 {[%emt 0:02:30]} Rb7 {[%emt 0:00:11]} 0-1

[Event "ESTCC U65 2018"]
[Site "Walbrzych"]
[Date "2018.04.15"]
[Round "2"]
[White "Dalling, Peter"]
[Black "Ruotanen, Helge"]
[Result "1/2-1/2"]
[ECO "B06"]
[WhiteElo "1844"]
[BlackElo "1921"]
[Annotator "NA RC"]
[PlyCount "40"]
[EventDate "2018.??.??"]
[EventCountry "POL"]
[SourceTitle "playchess.com"]
[Source "ChessBase"]
[SourceQuality "1"]
[WhiteTeam "Sweden"]
[BlackTeam "Finland"]
[WhiteTeamCountry "SWE"]
[BlackTeamCountry "FIN"]
[TimeControl "40/5400+30:1800+30"]

1. e4 {[%emt 0:00:00]} g6 {[%emt 0:00:24]} 2. d4 {[%emt 0:00:00]} d6 {[%emt 0:00:13]} 3. Nf3 {[%emt 0:00:19]} Bg7 {[%emt 0:00:22]} 4. Be3 {[%emt 0:01:03]} Nf6 {[%emt 0:00:58]} 5. Nc3 {[%emt 0:02:22]} c6 {[%emt 0:01:40]} 6. h3 {[%emt 0:01:06]} O-O {[%emt 0:01:19]} 7. Qd2 {[%emt 0:03:38]} e5 {[%emt 0:02:14]} 8. dxe5 {[%emt 0:02:54]} dxe5 {[%emt 0:00:15]} 9. Qxd8 {[%emt 0:02:12]} Rxd8 {[%emt 0:00:02]} 10. Bc4 {[%emt 0:00:33]} Nbd7 {[%emt 0:05:10]} 11. O-O-O {[%emt 0:03:01]} Rf8 {[%emt 0:06:54]} 12. g4 {[%emt 0:05:13]} b5 {[%emt 0:00:58]} 13. Bd3 {[%emt 0:02:55]} Re8 {[%emt 0:03:00]} 14. g5 {[%emt 0:02:10]} Nh5 {[%emt 0:00:15]} 15. Be2 {[%emt 0:00:24]} Bf8 {[%emt 0:00:03]} 16. Nh2 {[%emt 0:01:43]} Ng7 {[%emt 0:01:15]} 17. Ng4 $14 {[%emt 0:02:32]} Nh5 {[%emt 0:00:03]} 18. Nh2 {[%emt 0:01:26]} Ng7 {[%emt 0:00:26]} 19. Ng4 {[%emt 0:00:06]} Nh5 {[%emt 0:00:09]} 20. Nh2 {[%emt 0:00:47]} Ng7 1/2-1/2

[Event "ESTCC U65 2018"]
[Site "Walbrzych"]
[Date "2018.04.15"]
[Round "2"]
[White "Rintakoski, Pentti"]
[Black "Andersson, Kenneth"]
[Result "1/2-1/2"]
[ECO "B20"]
[WhiteElo "1797"]
[BlackElo "1763"]
[Annotator "NA RC"]
[PlyCount "40"]
[EventDate "2018.??.??"]
[EventCountry "POL"]
[SourceTitle "playchess.com"]
[Source "ChessBase"]
[SourceQuality "1"]
[WhiteTeam "Finland"]
[BlackTeam "Sweden"]
[WhiteTeamCountry "FIN"]
[BlackTeamCountry "SWE"]
[TimeControl "40/5400+30:1800+30"]

1. e4 {[%emt 0:00:00]} c5 {[%emt 0:00:27]} 2. Bc4 {[%emt 0:00:18]} Nc6 {[%emt 0:00:32]} 3. Nf3 {[%emt 0:00:14]} e6 {[%emt 0:01:09]} 4. c3 {[%emt 0:01:19]} d5 {[%emt 0:01:26]} 5. exd5 {[%emt 0:00:29]} exd5 {[%emt 0:00:07]} 6. Bb3 {[%emt 0:00:24]} Nf6 {[%emt 0:00:50]} 7. O-O {[%emt 0:00:16]} Be7 {[%emt 0:00:49]} 8. d3 {[%emt 0:00:37]} h6 {[%emt 0:00:42]} 9. Re1 {[%emt 0:01:19]} O-O {[%emt 0:00:24]} 10. h3 {[%emt 0:00:44]} Be6 {[%emt 0:01:12]} 11. Bf4 {[%emt 0:01:03]} Qd7 {[%emt 0:02:58]} 12. Nbd2 {[%emt 0:01:40]} Bf5 {[%emt 0:05:02]} 13. Nf1 {[%emt 0:00:29]} Rad8 {[%emt 0:01:12]} 14. Qd2 {[%emt 0:00:59]} Bd6 {[%emt 0:07:05]} 15. Ng3 {[%emt 0:01:03]} Be6 {[%emt 0:02:55]} 16. Bc2 {[%emt 0:03:51]} d4 {[%emt 0:02:15]} 17. Bxd6 {[%emt 0:05:28]} Qxd6 18. Ne4 Nxe4 19. dxe4 Ne5 {[%emt 0:09:15]} 20. Nxe5 {[%emt 0:04:19]} Qxe5 1/2-1/2

[Event "ESTCC U65 2018"]
[Site "Walbrzych"]
[Date "2018.04.16"]
[Round "3"]
[White "Jorgensen, Brian Jorgen"]
[Black "Hurme, Harri"]
[Result "1-0"]
[ECO "A46"]
[WhiteElo "2255"]
[BlackElo "2229"]
[Annotator "NA RC"]
[PlyCount "83"]
[EventDate "2018.??.??"]
[EventCountry "POL"]
[SourceTitle "playchess.com"]
[Source "ChessBase"]
[SourceQuality "1"]
[WhiteTeam "Denmark"]
[BlackTeam "Finland"]
[WhiteTeamCountry "DEN"]
[BlackTeamCountry "FIN"]
[TimeControl "40/5400+30:1800+30"]

1. d4 {[%emt 0:00:00]} Nf6 {[%emt 0:00:14]} 2. Nf3 {[%emt 0:00:00]} d5 {[%emt 0:00:25]} 3. g3 {[%emt 0:00:36]} e6 {[%emt 0:01:14]} 4. Bg2 {[%emt 0:00:08]} c5 {[%emt 0:01:03]} 5. O-O {[%emt 0:01:06]} Nc6 {[%emt 0:00:44]} 6. c4 {[%emt 0:02:21] LiveBook: 1679 Games} cxd4 {[%emt 0:09:01]} 7. cxd5 {[%emt 0:01:56]} Nxd5 {[%emt 0:02:10]} 8. Nxd4 {[%emt 0:00:21]} Bd7 {[%emt 0:01:21]} 9. Nc3 {[%emt 0:13:58] E01: Catalan: Early deviations} Nxc3 {[%emt 0:07:49]} 10. bxc3 {[%emt 0:08:23]} Be7 {[%emt 0:14:31]} 11. Nxc6 {[%emt 0:03:55]} Bxc6 {[%emt 0:00:45]} 12. Bxc6+ {[%emt 0:01:34]} bxc6 {[%emt 0:00:03]} 13. Qa4 {[%emt 0:00:29]} O-O {[%emt 0:02:35]} 14. Be3 {[%emt 0:03:24]} Qc7 $146 {[%emt 0:03:42]} ({Predecessor:} 14... Qd5 15. Rab1 Bc5 16. Rfd1 Qf5 {½-½ (30) Deepan Chakkravarthy,J (2461)-Karthikeyan,P (2414) Melaka 2012}) 15. Rab1 {[%emt 0:02:00]} Rfd8 {[%emt 0:10:34]} 16. Qa6 {[%emt 0:13:35]} Rd7 {[%emt 0:03:23]} 17. Rfd1 {[%emt 0:06:53]} Rxd1+ {[%emt 0:03:12]} 18. Rxd1 {[%emt 0:00:09]} h5 {[%emt 0:00:58]} 19. h4 {[%emt 0:01:58]} c5 {[%emt 0:02:45]} 20. Bf4 {[%emt 0:04:32]} Qb6 $11 {[%emt 0:01:26]} 21. Qa4 {[%emt 0:00:36]} Bf6 {[%emt 0:02:53]} 22. c4 {[%emt 0:02:58]} Rd8 {[%emt 0:06:17]} 23. Rxd8+ {[%emt 0:05:06]} Qxd8 {[%emt 0:00:13]} 24. Qb3 {[%emt 0:01:18]} Qd7 {[%emt 0:03:40]} 25. Kg2 {[%emt 0:01:45]} g6 {[%emt 0:00:29]} 26. a4 {[%emt 0:04:03]} e5 {[%emt 0:03:00]} 27. Be3 {[%emt 0:00:21]} a6 {[%emt 0:03:42]} 28. Qb6 {[%emt 0:01:16]} Kg7 {[%emt 0:05:51]} 29. Qxa6 {[%emt 0:01:12]} e4 {[%emt 0:03:03]} 30. Bh6+ {[%emt 0:04:28]} Kxh6 {[%emt 0:00:18]} 31. Qxf6 {[%emt 0:00:07]} Kh7 {[%emt 0:00:19]} 32. a5 {[%emt 0:00:26]} Kg8 {[%emt 0:01:41]} 33. Qe5 {[%emt 0:01:24]} Qg4 {[%emt 0:01:37]} 34. Qxc5 {[%emt 0:05:14]} Qxe2 {[%emt 0:00:22]} 35. a6 {[%emt 0:00:14]} Qa2 {[%emt 0:03:09]} 36. a7 {[%emt 0:00:31]} Kh7 {[%emt 0:00:54]} 37. Qd4 {[%emt 0:01:40]} Qa6 {[%emt 0:00:35]} 38. Qc5 {[%emt 0:03:31]} Kg7 {[%emt 0:01:29]} 39. Qe5+ {[%emt 0:00:42]} Kh7 {[%emt 0:00:45]} 40. Qb8 {[%emt 0:00:00]} Qa3 {[%emt 0:00:19]} 41. a8=Q {[%emt 0:01:42]} Qf3+ {[%emt 0:00:22]} 42. Kg1 {[%emt 0:00:11]} 1-0

[Event "ESTCC U65 2018"]
[Site "Walbrzych"]
[Date "2018.04.16"]
[Round "3"]
[White "Kradolfer, Georg"]
[Black "Rantanen, Veikko"]
[Result "1/2-1/2"]
[ECO "A15"]
[WhiteElo "2084"]
[BlackElo "2007"]
[Annotator "NA RC"]
[PlyCount "68"]
[EventDate "2018.??.??"]
[EventCountry "POL"]
[SourceTitle "playchess.com"]
[Source "ChessBase"]
[SourceQuality "1"]
[WhiteTeam "Switzerland"]
[BlackTeam "Finland"]
[WhiteTeamCountry "SUI"]
[BlackTeamCountry "FIN"]
[TimeControl "40/5400+30:1800+30"]

1. c4 {[%emt 0:00:00]} Nf6 {[%emt 0:00:15]} 2. Nf3 {[%emt 0:00:45]} g6 {[%emt 0:00:23]} 3. g3 {[%emt 0:00:07]} Bg7 {[%emt 0:00:31]} 4. Bg2 {[%emt 0:00:07]} c5 {[%emt 0:00:29]} 5. O-O {[%emt 0:00:43]} Nc6 {[%emt 0:00:41]} 6. d4 {[%emt 0:03:39]} cxd4 {[%emt 0:00:24]} 7. Nxd4 {[%emt 0:00:06]} O-O {[%emt 0:00:12]} 8. Nc3 {[%emt 0:06:21]} Qb6 {[%emt 0:12:05] LiveBook: 163 Games} 9. Nxc6 {[%emt 0:13:20]} dxc6 {[%emt 0:00:25]} 10. Qc2 {[%emt 0:09:07] A39: Symmetrical English vs ...g6: 4 Bg2 Bg7 5 Nf3 Nf6 6 0-0 0-0 7 d4} e5 {[%emt 0:02:20]} (10... Be6 11. b3 Rad8 12. Bb2 Rd7 13. Rad1 Rfd8 14. Rxd7 Rxd7 15. Rd1 Qd8 16. Rxd7 Qxd7 {½-½ (16) Popchev,M (2413)-Georgiev,K (2504) Sofia 2006}) 11. Bg5 $146 {[%emt 0:05:51]} ({Predecessor:} 11. Be3 Qc7 12. Rad1 Ng4 13. Bc5 Rd8 14. h3 Nf6 15. Rxd8+ Qxd8 16. Rd1 Qe8 17. b3 Bf8 18. Bxf8 Kxf8 {1-0 (40) Astapov,V (1827)-Komarov,J (1839) Saratov 2017}) 11... Bf5 {[%emt 0:03:53]} 12. e4 {[%emt 0:02:19]} Be6 {[%emt 0:00:50]} 13. b3 {[%emt 0:02:40]} h6 {[%emt 0:05:30]} 14. Be3 {[%emt 0:01:09]} Qc7 {[%emt 0:00:21]} 15. Rfd1 {[%emt 0:06:05]} b6 {[%emt 0:01:34]} 16. Rd2 {[%emt 0:02:09]} (16. f3 $11) 16... Ng4 {[%emt 0:02:36]} 17. Re1 {[%emt 0:01:31]} Rfd8 {[%emt 0:01:39]} 18. Rxd8+ {[%emt 0:02:30]} Rxd8 {[%emt 0:00:07]} 19. Bc1 {[%emt 0:00:34]} Nf6 {[%emt 0:05:30]} 20. Rd1 {[%emt 0:07:15]} Rxd1+ {[%emt 0:02:02]} 21. Qxd1 {[%emt 0:00:13]} Qd7 {[%emt 0:00:20]} 22. Qxd7 {[%emt 0:04:48]} Nxd7 {[%emt 0:00:37]} 23. Be3 {[%emt 0:02:05]} Bf8 {[%emt 0:00:33]} 24. Kf1 {[%emt 0:02:34]} h5 {[%emt 0:01:59]} 25. h4 {[%emt 0:02:02]} f6 {[%emt 0:00:34]} 26. f3 {[%emt 0:04:58]} Kf7 {[%emt 0:00:42]} 27. Ke2 {[%emt 0:00:43]} Bb4 {[%emt 0:01:28]} 28. Nb1 $15 {[%emt 0:04:23]} Ke7 {[%emt 0:00:56]} 29. Kd1 {[%emt 0:03:56]} Bc5 {[%emt 0:01:06]} 30. Kd2 {[%emt 0:02:15]} Kd6 {[%emt 0:03:44]} 31. Bf1 {[%emt 0:01:32]} Bb4+ {[%emt 0:02:49]} 32. Kd1 {[%emt 0:01:07]} Bc5 {[%emt 0:00:59]} 33. Kd2 {[%emt 0:01:08]} Bb4+ {[%emt 0:03:00]} 34. Kd1 {[%emt 0:00:53]} Bc5 1/2-1/2

[Event "ESTCC U65 2018"]
[Site "Walbrzych"]
[Date "2018.04.16"]
[Round "3"]
[White "Koskinen, Veikko"]
[Black "Auvinen, Esa"]
[Result "1/2-1/2"]
[ECO "A08"]
[WhiteElo "2012"]
[BlackElo "1888"]
[Annotator "NA RC"]
[PlyCount "25"]
[EventDate "2018.??.??"]
[EventCountry "POL"]
[SourceTitle "playchess.com"]
[Source "ChessBase"]
[SourceQuality "1"]
[WhiteTeam "Finland"]
[BlackTeam "Finland"]
[WhiteTeamCountry "FIN"]
[BlackTeamCountry "FIN"]
[TimeControl "40/5400+30:1800+30"]

1. Nf3 {[%emt 0:00:00]} d5 {[%emt 0:04:14]} 2. g3 {[%emt 0:00:05]} c5 {[%emt 0:01:31]} 3. Bg2 {[%emt 0:00:13]} Nc6 {[%emt 0:01:20]} 4. O-O {[%emt 0:00:39]} e5 {[%emt 0:00:14]} 5. d3 {[%emt 0:00:14]} Nf6 {[%emt 0:00:27]} 6. Bg5 {[%emt 0:03:37]} Be7 {[%emt 0:01:28]} 7. Nfd2 {[%emt 0:01:02]} Be6 {[%emt 0:00:46]} 8. Bxf6 {[%emt 0:02:38]} Bxf6 {[%emt 0:00:26]} 9. Nc3 {[%emt 0:00:35]} O-O {[%emt 0:01:24]} 10. e4 {[%emt 0:02:13]} dxe4 $11 {[%emt 0:03:36]} 11. dxe4 {[%emt 0:02:57]} g6 {[%emt 0:08:52]} 12. Nd5 {[%emt 0:09:44]} Bg7 {[%emt 0:01:01]} 13. Ne3 1/2-1/2

[Event "ESTCC U65 2018"]
[Site "Walbrzych"]
[Date "2018.04.16"]
[Round "3"]
[White "Olesen, Poul Erik Norgaard"]
[Black "Meskanen, Vesa"]
[Result "1-0"]
[ECO "B72"]
[WhiteElo "2005"]
[BlackElo "2066"]
[Annotator "NA RC"]
[PlyCount "61"]
[EventDate "2018.??.??"]
[EventCountry "POL"]
[SourceTitle "playchess.com"]
[Source "ChessBase"]
[SourceQuality "1"]
[WhiteTeam "Denmark"]
[BlackTeam "Finland"]
[WhiteTeamCountry "DEN"]
[BlackTeamCountry "FIN"]
[TimeControl "40/5400+30:1800+30"]

1. e4 {[%emt 0:00:00]} c5 {[%emt 0:00:18]} 2. Nf3 {[%emt 0:00:03]} d6 {[%emt 0:00:07]} 3. d4 {[%emt 0:00:49]} cxd4 {[%emt 0:00:08]} 4. Nxd4 {[%emt 0:00:09]} Nf6 {[%emt 0:00:06]} 5. Nc3 {[%emt 0:00:11]} g6 {[%emt 0:00:43]} 6. Be2 {[%emt 0:02:17]} Bg7 {[%emt 0:00:22]} 7. Be3 {[%emt 0:01:01]} Nc6 {[%emt 0:01:56]} 8. Nb3 {[%emt 0:01:33]} Be6 {[%emt 0:04:53] LiveBook: 20 Games} 9. f4 {[%emt 0:04:51]} a5 {[%emt 0:04:30]} 10. a4 {[%emt 0:00:45]} Rc8 {[%emt 0:02:45]} 11. O-O {[%emt 0:05:57]} O-O {[%emt 0:06:05]} 12. Kh1 {[%emt 0:19:58] B74: Sicilian Dragon: Classical System with 9 Nb3} Nb4 (12... Bxb3 13. cxb3 Nd7 14. Bc4 Nb4 15. Qe2 Nb6 16. Nd5 N4xd5 17. exd5 Nd7 18. Rae1 Nc5 19. f5 Nd7 {1-0 (72) Tiviakov,S (2674)-Colovic,A (2441) Benidorm 2009}) 13. Bf3 {[%emt 0:06:29]} Qd7 $146 {[%emt 0:15:03]} ({Find the theoretical novelty and annotate with similar games:} 13... Nd7 14. Nd4 Bc4 15. Rf2 e6 16. Bg4 Nb6 17. Rd2 Qe7 {½-½ (53) Zhang,X (2354)-Tan,Z (2438) Beijing 2012}) 14. Nxa5 {[%emt 0:12:20]} Ng4 {[%emt 0:07:21]} 15. Bg1 {[%emt 0:01:24]} Ra8 {[%emt 0:10:17]} (15... h5 $14) 16. Nb3 {[%emt 0:02:58]} Rfc8 {[%emt 0:03:06]} 17. Nd4 {[%emt 0:02:10]} Nf6 $18 {[%emt 0:03:12]} 18. Nxe6 {[%emt 0:07:13]} fxe6 {[%emt 0:00:19]} 19. Be3 {[%emt 0:13:35]} Ne8 {[%emt 0:09:29]} 20. Rf2 {[%emt 0:02:54]} Bxc3 {[%emt 0:04:35]} 21. bxc3 {[%emt 0:00:12]} Na6 {[%emt 0:02:16]} 22. f5 {[%emt 0:03:47]} Rxc3 {[%emt 0:05:00]} 23. Bd4 {[%emt 0:01:00]} Rc4 {[%emt 0:01:23]} 24. fxe6 {[%emt 0:00:22]} Qxe6 {[%emt 0:03:51]} 25. Bg4 {[%emt 0:00:16]} Qxe4 {[%emt 0:00:45]} 26. c3 {[%emt 0:00:43]} Nc5 {[%emt 0:04:39]} 27. Qf1 {[%emt 0:01:52]} Nf6 {[%emt 0:04:32]} 28. Qxc4+ d5 29. Qxc5 {[%emt 0:03:20]} Nxg4 {[%emt 0:01:18]} 30. Rff1 {[%emt 0:00:40]} e5 {[%emt 0:02:46]} 31. Rae1 {[%emt 0:00:41]} 1-0